[Event "Titled Tuesday Blitz February 14 Late 2023"]
[White "Miszler, Levente"]
[Black "Boyer, Mahel"]
[WhiteFideId "763276"]
[BlackFideId "45102422"]
[WhiteElo "2271"]
[BlackElo "2489"]
[Result "0-1"]
[Round "02"]
[TimeControl "180+2"]
[Date "2023.02.14"]
[WhiteClock "0:00:04"]
[BlackClock "0:00:50"]

1. Nf3 {[%clk 0:03:00]}  c6 {[%clk 0:03:00]} 2. c4 {[%clk 0:03:01]}  d5 {[%clk 0:02:56]} 3. g3 {[%clk 0:03:01]}  Nd7 {[%clk 0:02:55]} 4. Bg2 {[%clk 0:03:01]}  dxc4 {[%clk 0:02:55]} 5. O-O {[%clk 0:03:01]}  b5 {[%clk 0:02:54]} 6. a4 {[%clk 0:03:02]}  Bb7 {[%clk 0:02:53]} 7. b3 {[%clk 0:02:55]}  cxb3 {[%clk 0:02:50]} 8. Qxb3 {[%clk 0:02:56]}  a6 {[%clk 0:02:50]} 9. Bb2 {[%clk 0:02:53]}  e6 {[%clk 0:02:49]} 10. d3 {[%clk 0:02:41]}  Nc5 {[%clk 0:02:47]} 11. Qc2 {[%clk 0:02:39]}  Nxa4 {[%clk 0:02:39]} 12. Rxa4 {[%clk 0:02:38]}  bxa4 {[%clk 0:02:40]} 13. Qxa4 {[%clk 0:02:38]}  Nf6 {[%clk 0:02:38]} 14. Ne5 {[%clk 0:02:37]}  Rc8 {[%clk 0:02:34]} 15. Rc1 {[%clk 0:02:35]}  Nd5 {[%clk 0:02:32]} 16. Nc3 {[%clk 0:02:29]}  Bd6 {[%clk 0:02:30]} 17. Nc4 {[%clk 0:02:28]}  O-O {[%clk 0:02:29]} 18. Ne4 {[%clk 0:02:28]}  Be7 {[%clk 0:02:28]} 19. Na5 {[%clk 0:02:27]}  Ba8 {[%clk 0:02:27]} 20. Nc4 {[%clk 0:01:55]}  c5 {[%clk 0:02:26]} 21. Qxa6 {[%clk 0:01:51]}  Nf6 {[%clk 0:02:25]} 22. Bxf6 {[%clk 0:01:21]}  Bxf6 {[%clk 0:02:23]} 23. Nb6 {[%clk 0:00:55]}  Bxe4 {[%clk 0:02:06]} 24. Bxe4 {[%clk 0:00:47]}  Rb8 {[%clk 0:02:07]} 25. Na4 {[%clk 0:00:43]}  Qd4 {[%clk 0:01:48]} 26. Nxc5 {[%clk 0:00:39]}  Rfc8 {[%clk 0:01:46]} 27. Qa7 {[%clk 0:00:28]}  Rb5 {[%clk 0:01:34]} 28. Rc4 {[%clk 0:00:19]}  Qa1+ {[%clk 0:01:11]} 29. Qxa1 {[%clk 0:00:18]}  Bxa1 {[%clk 0:01:12]} 30. Nd7 {[%clk 0:00:15]}  Rb1+ {[%clk 0:01:10]} 31. Kg2 {[%clk 0:00:15]}  Rxc4 {[%clk 0:01:11]} 32. dxc4 {[%clk 0:00:16]}  Rc1 {[%clk 0:01:12]} 33. Bd3 {[%clk 0:00:15]}  Bd4 {[%clk 0:01:09]} 34. Nb8 {[%clk 0:00:14]}  Kf8 {[%clk 0:01:07]} 35. Nc6 {[%clk 0:00:14]}  Bc5 {[%clk 0:01:07]} 36. Ne5 {[%clk 0:00:14]}  Ke7 {[%clk 0:01:06]} 37. Nf3 {[%clk 0:00:12]}  h6 {[%clk 0:01:05]} 38. Nd2 {[%clk 0:00:12]}  Bb4 {[%clk 0:01:02]} 39. Nb3 {[%clk 0:00:10]}  Rc3 {[%clk 0:01:02]} 40. Nd4 {[%clk 0:00:10]}  Kf6 {[%clk 0:01:01]} 41. Nb5 {[%clk 0:00:08]}  Rc1 {[%clk 0:01:01]} 42. Kf3 {[%clk 0:00:08]}  Bc5 {[%clk 0:01:00]} 43. Kg2 {[%clk 0:00:07]}  Ke5 {[%clk 0:01:00]} 44. Nc7 {[%clk 0:00:07]}  g5 {[%clk 0:00:58]} 45. Ne8 {[%clk 0:00:07]}  f5 {[%clk 0:00:55]} 46. h3 {[%clk 0:00:07]}  h5 {[%clk 0:00:54]} 47. Ng7 {[%clk 0:00:07]}  h4 {[%clk 0:00:54]} 48. gxh4 {[%clk 0:00:07]}  gxh4 {[%clk 0:00:55]} 49. Ne8 {[%clk 0:00:08]}  Bb6 {[%clk 0:00:54]} 50. Ng7 {[%clk 0:00:05]}  Kf6 {[%clk 0:00:53]} 51. Nh5+ {[%clk 0:00:05]}  Kg5 {[%clk 0:00:53]} 52. Ng7 {[%clk 0:00:05]}  Kf6 {[%clk 0:00:51]} 53. Nh5+ {[%clk 0:00:05]}  Ke5 {[%clk 0:00:52]} 54. Kf3 {[%clk 0:00:05]}  Rh1 {[%clk 0:00:51]} 55. Nf4 {[%clk 0:00:05]}  Bxf2 {[%clk 0:00:47]} 56. Kg2 {[%clk 0:00:04]}  Ra1 {[%clk 0:00:42]} 57. Ng6+ {[%clk 0:00:04]}  Kf6 {[%clk 0:00:42]} 58. Kxf2 {[%clk 0:00:03]}  Kxg6 {[%clk 0:00:42]} 59. Kg2 {[%clk 0:00:02]}  Rc1 {[%clk 0:00:43]} 60. Kf3 {[%clk 0:00:02]}  Kf6 {[%clk 0:00:44]} 61. Kg2 {[%clk 0:00:02]}  Ke5 {[%clk 0:00:44]} 62. Kf2 {[%clk 0:00:02]}  Kf4 {[%clk 0:00:44]} 63. Kg2 {[%clk 0:00:02]}  Ke3 {[%clk 0:00:44]} 64. c5 {[%clk 0:00:02]}  f4 {[%clk 0:00:45]} 65. c6 {[%clk 0:00:02]}  Rxc6 {[%clk 0:00:45]} 66. Bb5 {[%clk 0:00:02]}  Rd6 {[%clk 0:00:46]} 67. Ba6 {[%clk 0:00:02]}  e5 {[%clk 0:00:47]} 68. Bb7 {[%clk 0:00:02]}  Rg6+ {[%clk 0:00:48]} 69. Kh2 {[%clk 0:00:02]}  e4 {[%clk 0:00:48]} 70. Bc8 {[%clk 0:00:02]}  Rg3 {[%clk 0:00:47]} 71. Bg4 {[%clk 0:00:02]}  Kf2 {[%clk 0:00:48]} 72. Kh1 {[%clk 0:00:02]}  f3 {[%clk 0:00:47]} 73. Kh2 {[%clk 0:00:03]}  e3 {[%clk 0:00:48]} 74. exf3 {[%clk 0:00:03]}  e2 {[%clk 0:00:48]} 75. f4 {[%clk 0:00:04]}  e1=Q {[%clk 0:00:49]} 76. Bf3 {[%clk 0:00:04]}  Qg1# {[%clk 0:00:50]} 0-1


[Site "https://www.chess.com"]

[Event "Titled Tuesday Blitz February 14 Late 2023"]
[White "Cuenca Jimenez, Jose Fernando"]
[Black "Aguilar, Juan"]
[WhiteFideId "2255570"]
[BlackFideId "3800091"]
[WhiteElo "2535"]
[BlackElo "2254"]
[Result "1-0"]
[Round "02"]
[TimeControl "180+2"]
[Date "2023.02.14"]
[WhiteClock "0:00:40"]
[BlackClock "0:00:21"]

1. d4 {[%clk 0:02:53]}  g6 {[%clk 0:03:00]} 2. c4 {[%clk 0:02:52]}  Bg7 {[%clk 0:03:01]} 3. Nc3 {[%clk 0:02:52]}  d6 {[%clk 0:03:00]} 4. Nf3 {[%clk 0:02:48]}  Nc6 {[%clk 0:02:59]} 5. e3 {[%clk 0:02:44]}  e5 {[%clk 0:02:50]} 6. dxe5 {[%clk 0:02:42]}  Nxe5 {[%clk 0:02:46]} 7. Be2 {[%clk 0:02:42]}  Nf6 {[%clk 0:02:37]} 8. O-O {[%clk 0:02:39]}  O-O {[%clk 0:02:36]} 9. Nd4 {[%clk 0:02:40]}  c6 {[%clk 0:02:21]} 10. f4 {[%clk 0:02:28]}  Ned7 {[%clk 0:02:16]} 11. Bf3 {[%clk 0:02:28]}  Re8 {[%clk 0:02:11]} 12. Qc2 {[%clk 0:02:17]}  Nc5 {[%clk 0:02:05]} 13. Bd2 {[%clk 0:02:17]}  a5 {[%clk 0:02:00]} 14. Rae1 {[%clk 0:02:15]}  Qc7 {[%clk 0:01:57]} 15. Bc1 {[%clk 0:02:15]}  Bg4 {[%clk 0:01:47]} 16. b3 {[%clk 0:01:55]}  Bxf3 {[%clk 0:01:43]} 17. Nxf3 {[%clk 0:01:55]}  Re7 {[%clk 0:01:37]} 18. Re2 {[%clk 0:01:35]}  Rae8 {[%clk 0:01:36]} 19. Rfe1 {[%clk 0:01:35]}  Qb6 {[%clk 0:01:29]} 20. h3 {[%clk 0:01:30]}  Nh5 {[%clk 0:01:20]} 21. Kh2 {[%clk 0:01:30]}  Ne4 {[%clk 0:01:14]} 22. Nxe4 {[%clk 0:01:25]}  Rxe4 {[%clk 0:01:15]} 23. Ng5 {[%clk 0:01:08]}  R4e7 {[%clk 0:01:15]} 24. e4 {[%clk 0:01:08]}  Nf6 {[%clk 0:01:10]} 25. Kh1 {[%clk 0:00:56]}  h6 {[%clk 0:01:01]} 26. Nf3 {[%clk 0:00:56]}  c5 {[%clk 0:00:59]} 27. e5 {[%clk 0:00:55]}  dxe5 {[%clk 0:00:52]} 28. Nxe5 {[%clk 0:00:50]}  Nh5 {[%clk 0:00:51]} 29. Qd3 {[%clk 0:00:48]}  Qc7 {[%clk 0:00:46]} 30. Qd5 {[%clk 0:00:42]}  Ng3+ {[%clk 0:00:38]} 31. Kg1 {[%clk 0:00:42]}  Nxe2+ {[%clk 0:00:37]} 32. Rxe2 {[%clk 0:00:43]}  Bxe5 {[%clk 0:00:35]} 33. fxe5 {[%clk 0:00:40]}  Rxe5 {[%clk 0:00:35]} 34. Bf4 {[%clk 0:00:40]}  Rxd5 {[%clk 0:00:32]} 35. Rxe8+ {[%clk 0:00:40]}  Kg7 {[%clk 0:00:32]} 36. Bxc7 {[%clk 0:00:41]}  Rd1+ {[%clk 0:00:32]} 37. Kh2 {[%clk 0:00:41]}  Rd2 {[%clk 0:00:26]} 38. Be5+ {[%clk 0:00:41]}  f6 {[%clk 0:00:26]} 39. Re7+ {[%clk 0:00:41]}  Kf8 {[%clk 0:00:26]} 40. Bxf6 {[%clk 0:00:42]}  Rxa2 {[%clk 0:00:26]} 41. Rxb7 {[%clk 0:00:41]}  Ra3 {[%clk 0:00:22]} 42. Bg7+ {[%clk 0:00:39]}  Ke8 {[%clk 0:00:21]} 43. Bxh6 {[%clk 0:00:40]} 1-0


[Site "https://www.chess.com"]

[Event "Titled Tuesday Blitz February 14 Late 2023"]
[White "Aggelis, Nikolaos"]
[Black "Melikhov, Evgeny V."]
[WhiteFideId "4213220"]
[BlackFideId "4122046"]
[WhiteElo "2270"]
[BlackElo "2269"]
[Result "1/2-1/2"]
[Round "02"]
[TimeControl "180+2"]
[Date "2023.02.14"]
[WhiteClock "0:02:00"]
[BlackClock "0:01:03"]

1. d4 {[%clk 0:02:55]}  Nf6 {[%clk 0:02:59]} 2. g3 {[%clk 0:02:54]}  d5 {[%clk 0:02:53]} 3. Bg2 {[%clk 0:02:55]}  Bg4 {[%clk 0:02:53]} 4. Nf3 {[%clk 0:02:55]}  Nbd7 {[%clk 0:02:52]} 5. Ne5 {[%clk 0:02:55]}  Bf5 {[%clk 0:02:51]} 6. f3 {[%clk 0:02:55]}  c6 {[%clk 0:02:49]} 7. g4 {[%clk 0:02:55]}  Bg6 {[%clk 0:02:48]} 8. h4 {[%clk 0:02:55]}  Nxe5 {[%clk 0:02:25]} 9. dxe5 {[%clk 0:02:56]}  Nd7 {[%clk 0:02:25]} 10. h5 {[%clk 0:02:54]}  Nxe5 {[%clk 0:02:25]} 11. Bf4 {[%clk 0:02:44]}  Nc4 {[%clk 0:02:11]} 12. hxg6 {[%clk 0:02:41]}  fxg6 {[%clk 0:02:08]} 13. b3 {[%clk 0:02:28]}  e5 {[%clk 0:02:02]} 14. Bg3 {[%clk 0:02:19]}  Ne3 {[%clk 0:01:52]} 15. Qd3 {[%clk 0:02:10]}  Nxg2+ {[%clk 0:01:52]} 16. Kf2 {[%clk 0:02:10]}  Nf4 {[%clk 0:01:52]} 17. Bxf4 {[%clk 0:02:10]}  exf4 {[%clk 0:01:52]} 18. Rxh7 {[%clk 0:02:11]}  Rxh7 {[%clk 0:01:47]} 19. Qxg6+ {[%clk 0:02:11]}  Kd7 {[%clk 0:01:46]} 20. Qxh7 {[%clk 0:02:12]}  Qf6 {[%clk 0:01:43]} 21. Qf5+ {[%clk 0:02:07]}  Qxf5 {[%clk 0:01:41]} 22. gxf5 {[%clk 0:02:08]}  Bc5+ {[%clk 0:01:40]} 23. Kg2 {[%clk 0:02:03]}  Re8 {[%clk 0:01:40]} 24. Kf1 {[%clk 0:02:01]}  Rh8 {[%clk 0:01:30]} 25. Kg2 {[%clk 0:02:01]}  Re8 {[%clk 0:01:19]} 26. Kf1 {[%clk 0:02:00]}  Rh8 {[%clk 0:01:15]} 27. Kg2 {[%clk 0:02:00]}  Re8 {[%clk 0:01:03]} 1/2-1/2


[Site "https://www.chess.com"]

[Event "Titled Tuesday Blitz February 14 Late 2023"]
[White "Todev, Simeon"]
[Black "Fiorito, Joaquin"]
[WhiteFideId "2925133"]
[BlackFideId "180173"]
[WhiteElo "2033"]
[BlackElo "2405"]
[Result "0-1"]
[Round "02"]
[TimeControl "180+2"]
[Date "2023.02.14"]
[WhiteClock "0:00:04"]
[BlackClock "0:00:09"]

1. e4 {[%clk 0:02:50]}  c6 {[%clk 0:02:59]} 2. d4 {[%clk 0:02:43]}  d5 {[%clk 0:02:59]} 3. Nc3 {[%clk 0:02:44]}  dxe4 {[%clk 0:02:59]} 4. Nxe4 {[%clk 0:02:45]}  Nf6 {[%clk 0:03:00]} 5. Ng3 {[%clk 0:02:31]}  h5 {[%clk 0:02:59]} 6. h4 {[%clk 0:02:27]}  Bg4 {[%clk 0:02:58]} 7. Be2 {[%clk 0:02:17]}  Bxe2 {[%clk 0:02:56]} 8. N1xe2 {[%clk 0:02:17]}  e6 {[%clk 0:02:56]} 9. Bg5 {[%clk 0:02:17]}  Be7 {[%clk 0:02:55]} 10. Nf4 {[%clk 0:02:16]}  Nd5 {[%clk 0:02:52]} 11. Nxd5 {[%clk 0:01:57]}  cxd5 {[%clk 0:02:48]} 12. Bxe7 {[%clk 0:01:50]}  Qxe7 {[%clk 0:02:48]} 13. Nxh5 {[%clk 0:01:51]}  g6 {[%clk 0:02:45]} 14. Ng3 {[%clk 0:01:50]}  Rxh4 {[%clk 0:02:43]} 15. Rxh4 {[%clk 0:01:42]}  Qxh4 {[%clk 0:02:44]} 16. Qd3 {[%clk 0:01:39]}  Nc6 {[%clk 0:02:41]} 17. O-O-O {[%clk 0:01:38]}  Qf4+ {[%clk 0:02:38]} 18. Qe3 {[%clk 0:01:38]}  Qxe3+ {[%clk 0:02:32]} 19. fxe3 {[%clk 0:01:39]}  Ke7 {[%clk 0:02:27]} 20. Rh1 {[%clk 0:01:36]}  Rc8 {[%clk 0:02:13]} 21. c3 {[%clk 0:01:19]}  b5 {[%clk 0:02:12]} 22. Kd2 {[%clk 0:01:18]}  b4 {[%clk 0:02:07]} 23. e4 {[%clk 0:01:18]}  bxc3+ {[%clk 0:02:06]} 24. bxc3 {[%clk 0:01:18]}  Na5 {[%clk 0:01:58]} 25. exd5 {[%clk 0:00:59]}  exd5 {[%clk 0:01:58]} 26. Rb1 {[%clk 0:00:59]}  Nc4+ {[%clk 0:01:47]} 27. Kd3 {[%clk 0:00:59]}  Nb6 {[%clk 0:01:47]} 28. a4 {[%clk 0:00:56]}  Nxa4 {[%clk 0:01:36]} 29. Rb7+ {[%clk 0:00:53]}  Kf6 {[%clk 0:01:35]} 30. Ne2 {[%clk 0:00:44]}  a6 {[%clk 0:01:21]} 31. Rd7 {[%clk 0:00:27]}  Ke6 {[%clk 0:01:18]} 32. Ra7 {[%clk 0:00:26]}  Rc6 {[%clk 0:01:07]} 33. Nf4+ {[%clk 0:00:22]}  Kd6 {[%clk 0:01:08]} 34. Rxf7 {[%clk 0:00:21]}  Rxc3+ {[%clk 0:01:08]} 35. Kd2 {[%clk 0:00:20]}  Rg3 {[%clk 0:00:56]} 36. Rf6+ {[%clk 0:00:20]}  Kd7 {[%clk 0:00:54]} 37. Rxa6 {[%clk 0:00:19]}  Nc3 {[%clk 0:00:51]} 38. Nxg6 {[%clk 0:00:16]}  Ne4+ {[%clk 0:00:51]} 39. Ke2 {[%clk 0:00:15]}  Rxg2+ {[%clk 0:00:50]} 40. Ke3 {[%clk 0:00:15]}  Rb2 {[%clk 0:00:45]} 41. Kf4 {[%clk 0:00:13]}  Nc3 {[%clk 0:00:40]} 42. Ne5+ {[%clk 0:00:10]}  Ke7 {[%clk 0:00:39]} 43. Nc6+ {[%clk 0:00:11]}  Kf7 {[%clk 0:00:37]} 44. Ne5+ {[%clk 0:00:11]}  Kg7 {[%clk 0:00:37]} 45. Rg6+ {[%clk 0:00:10]}  Kh7 {[%clk 0:00:37]} 46. Kf5 {[%clk 0:00:08]}  Re2 {[%clk 0:00:24]} 47. Rg3 {[%clk 0:00:06]}  Ne4 {[%clk 0:00:23]} 48. Rh3+ {[%clk 0:00:06]}  Kg7 {[%clk 0:00:23]} 49. Rh4 {[%clk 0:00:04]}  Nc3 {[%clk 0:00:19]} 50. Rg4+ {[%clk 0:00:05]}  Kf8 {[%clk 0:00:18]} 51. Ke6 {[%clk 0:00:04]}  Re4 {[%clk 0:00:09]} 52. Rg1 {[%clk 0:00:02]}  Nb5 {[%clk 0:00:04]} 53. Kf6 {[%clk 0:00:02]}  Nxd4 {[%clk 0:00:04]} 54. Nd7+ {[%clk 0:00:02]}  Ke8 {[%clk 0:00:04]} 55. Nc5 {[%clk 0:00:02]}  Rf4+ {[%clk 0:00:04]} 56. Ke5 {[%clk 0:00:02]}  Rh4 {[%clk 0:00:04]} 57. Rg8+ {[%clk 0:00:02]}  Kf7 {[%clk 0:00:05]} 58. Ra8 {[%clk 0:00:03]}  Nc6+ {[%clk 0:00:03]} 59. Kxd5 {[%clk 0:00:03]}  Ne7+ {[%clk 0:00:04]} 60. Kd6 {[%clk 0:00:03]}  Rd4+ {[%clk 0:00:04]} 61. Kc7 {[%clk 0:00:03]}  Rc4 {[%clk 0:00:04]} 62. Kb6 {[%clk 0:00:03]}  Rb4+ {[%clk 0:00:05]} 63. Ka5 {[%clk 0:00:03]}  Rb1 {[%clk 0:00:04]} 64. Ra6 {[%clk 0:00:02]}  Nd5 {[%clk 0:00:04]} 65. Ra7+ {[%clk 0:00:03]}  Kf6 {[%clk 0:00:04]} 66. Na4 {[%clk 0:00:03]}  Ra1 {[%clk 0:00:04]} 67. Ra6+ {[%clk 0:00:04]}  Ke5 {[%clk 0:00:04]} 68. Ra8 {[%clk 0:00:03]}  Kd4 {[%clk 0:00:03]} 69. Rd8 {[%clk 0:00:03]}  Ke5 {[%clk 0:00:03]} 70. Re8+ {[%clk 0:00:04]}  Kd6 {[%clk 0:00:03]} 71. Rd8+ {[%clk 0:00:04]}  Kc6 {[%clk 0:00:04]} 72. Rc8+ {[%clk 0:00:05]}  Kd7 {[%clk 0:00:04]} 73. Rb8 {[%clk 0:00:05]}  Nc3 {[%clk 0:00:04]} 74. Rb7+ {[%clk 0:00:03]}  Kc6 {[%clk 0:00:04]} 75. Rb6+ {[%clk 0:00:04]}  Kc7 {[%clk 0:00:04]} 76. Rb4 {[%clk 0:00:03]}  Nd5 {[%clk 0:00:04]} 77. Rc4+ {[%clk 0:00:04]}  Kd6 {[%clk 0:00:05]} 78. Rc8 {[%clk 0:00:04]}  Rb1 {[%clk 0:00:05]} 79. Rd8+ {[%clk 0:00:04]}  Ke5 {[%clk 0:00:04]} 80. Re8+ {[%clk 0:00:04]}  Kd4 {[%clk 0:00:05]} 81. Rh8 {[%clk 0:00:05]}  Rb7 {[%clk 0:00:04]} 82. Rh4+ {[%clk 0:00:05]}  Ke5 {[%clk 0:00:05]} 83. Nc5 {[%clk 0:00:04]}  Ra7+ {[%clk 0:00:04]} 84. Kb5 {[%clk 0:00:05]}  Ra1 {[%clk 0:00:05]} 85. Nd3+ {[%clk 0:00:04]}  Kd6 {[%clk 0:00:05]} 86. Rh6+ {[%clk 0:00:05]}  Ke7 {[%clk 0:00:05]} 87. Kc5 {[%clk 0:00:05]}  Nf6 {[%clk 0:00:05]} 88. Nf4 {[%clk 0:00:03]}  Ra5+ {[%clk 0:00:05]} 89. Kd4 {[%clk 0:00:02]}  Ra4+ {[%clk 0:00:03]} 90. Kc5 {[%clk 0:00:02]}  Rxf4 {[%clk 0:00:03]} 91. Rh1 {[%clk 0:00:03]}  Nd7+ {[%clk 0:00:03]} 92. Kd5 {[%clk 0:00:03]}  Rf5+ {[%clk 0:00:03]} 93. Ke4 {[%clk 0:00:03]}  Ra5 {[%clk 0:00:04]} 94. Rh7+ {[%clk 0:00:03]}  Ke6 {[%clk 0:00:04]} 95. Rh6+ {[%clk 0:00:04]}  Nf6+ {[%clk 0:00:05]} 96. Ke3 {[%clk 0:00:04]}  Ra4 {[%clk 0:00:05]} 97. Rh3 {[%clk 0:00:04]}  Ke5 {[%clk 0:00:05]} 98. Ke2 {[%clk 0:00:03]}  Ra2+ {[%clk 0:00:06]} 99. Kd1 {[%clk 0:00:04]}  Ne4 {[%clk 0:00:06]} 100. Rh8 {[%clk 0:00:04]}  Kd4 {[%clk 0:00:06]} 101. Rd8+ {[%clk 0:00:04]}  Ke3 {[%clk 0:00:07]} 102. Kc1 {[%clk 0:00:05]}  Rh2 {[%clk 0:00:07]} 103. Re8 {[%clk 0:00:04]}  Kd3 {[%clk 0:00:06]} 104. Rd8+ {[%clk 0:00:05]}  Kc4 {[%clk 0:00:06]} 105. Rc8+ {[%clk 0:00:05]}  Nc5 {[%clk 0:00:07]} 106. Kd1 {[%clk 0:00:05]}  Kd3 {[%clk 0:00:06]} 107. Rd8+ {[%clk 0:00:05]}  Ke4 {[%clk 0:00:06]} 108. Re8+ {[%clk 0:00:06]}  Kd4 {[%clk 0:00:06]} 109. Rd8+ {[%clk 0:00:06]}  Kc4 {[%clk 0:00:07]} 110. Ke1 {[%clk 0:00:06]}  Ne4 {[%clk 0:00:07]} 111. Kf1 {[%clk 0:00:06]}  Rc2 {[%clk 0:00:06]} 112. Kg1 {[%clk 0:00:06]}  Nc5 {[%clk 0:00:07]} 113. Kf1 {[%clk 0:00:06]}  Nd3 {[%clk 0:00:07]} 114. Rc8+ {[%clk 0:00:05]}  Nc5 {[%clk 0:00:07]} 115. Rd8 {[%clk 0:00:05]}  Rb2 {[%clk 0:00:07]} 116. Ke1 {[%clk 0:00:04]}  Ne4 {[%clk 0:00:08]} 117. Kf1 {[%clk 0:00:03]}  Kc5 {[%clk 0:00:08]} 118. Ke1 {[%clk 0:00:03]}  Nd6 {[%clk 0:00:09]} 119. Kd1 {[%clk 0:00:03]}  Kd5 {[%clk 0:00:10]} 120. Rh8 {[%clk 0:00:03]}  Kd4 {[%clk 0:00:09]} 121. Rd8 {[%clk 0:00:03]}  Ke5 {[%clk 0:00:09]} 122. Re8+ {[%clk 0:00:04]}  Nxe8 {[%clk 0:00:09]} 0-1


[Site "https://www.chess.com"]

[Event "Titled Tuesday Blitz February 14 Late 2023"]
[White "gshwbedhkhd"]
[Black "Li, Hui"]
[BlackFideId "15400310"]
[WhiteElo "2554"]
[BlackElo "1963"]
[Result "1/2-1/2"]
[Round "02"]
[TimeControl "180+2"]
[Date "2023.02.14"]
[WhiteClock "0:01:05"]
[BlackClock "0:00:10"]

1. b4 {[%clk 0:03:00]}  e6 {[%clk 0:02:57]} 2. Bb2 {[%clk 0:03:01]}  Nf6 {[%clk 0:02:56]} 3. a3 {[%clk 0:02:59]}  d5 {[%clk 0:02:54]} 4. Nf3 {[%clk 0:02:59]}  c5 {[%clk 0:02:54]} 5. bxc5 {[%clk 0:02:58]}  Bxc5 {[%clk 0:02:54]} 6. e3 {[%clk 0:02:59]}  O-O {[%clk 0:02:54]} 7. Be2 {[%clk 0:02:59]}  Nc6 {[%clk 0:02:54]} 8. O-O {[%clk 0:02:59]}  b6 {[%clk 0:02:53]} 9. c4 {[%clk 0:02:59]}  Bb7 {[%clk 0:02:52]} 10. Nc3 {[%clk 0:02:56]}  dxc4 {[%clk 0:02:52]} 11. Bxc4 {[%clk 0:02:51]}  a6 {[%clk 0:02:51]} 12. Qe2 {[%clk 0:02:48]}  b5 {[%clk 0:02:50]} 13. Bb3 {[%clk 0:02:48]}  Na5 {[%clk 0:02:47]} 14. Bc2 {[%clk 0:02:48]}  Nc4 {[%clk 0:02:47]} 15. Bc1 {[%clk 0:02:46]}  Rc8 {[%clk 0:02:32]} 16. a4 {[%clk 0:02:36]}  Bc6 {[%clk 0:02:20]} 17. axb5 {[%clk 0:02:35]}  axb5 {[%clk 0:02:21]} 18. d3 {[%clk 0:02:29]}  Nb6 {[%clk 0:02:00]} 19. d4 {[%clk 0:02:28]}  Bd6 {[%clk 0:01:56]} 20. Bb2 {[%clk 0:02:24]}  b4 {[%clk 0:01:54]} 21. Nd1 {[%clk 0:02:20]}  Be4 {[%clk 0:01:44]} 22. Bxe4 {[%clk 0:02:17]}  Nxe4 {[%clk 0:01:45]} 23. Qd3 {[%clk 0:02:16]}  f5 {[%clk 0:01:37]} 24. Nd2 {[%clk 0:02:15]}  Qh4 {[%clk 0:01:17]} 25. h3 {[%clk 0:02:00]}  Nc3 {[%clk 0:00:59]} 26. Nxc3 {[%clk 0:01:57]}  bxc3 {[%clk 0:01:00]} 27. Bxc3 {[%clk 0:01:58]}  Nd5 {[%clk 0:00:57]} 28. Bb2 {[%clk 0:01:57]}  Rb8 {[%clk 0:00:47]} 29. Nf3 {[%clk 0:01:56]}  Qe7 {[%clk 0:00:44]} 30. Ba3 {[%clk 0:01:55]}  Bxa3 {[%clk 0:00:40]} 31. Qxa3 {[%clk 0:01:55]}  Qxa3 {[%clk 0:00:38]} 32. Rxa3 {[%clk 0:01:56]}  f4 {[%clk 0:00:38]} 33. e4 {[%clk 0:01:56]}  Nf6 {[%clk 0:00:38]} 34. Re1 {[%clk 0:01:54]}  Rfd8 {[%clk 0:00:37]} 35. Ra6 {[%clk 0:01:51]}  Re8 {[%clk 0:00:36]} 36. Ng5 {[%clk 0:01:48]}  e5 {[%clk 0:00:33]} 37. d5 {[%clk 0:01:46]}  h6 {[%clk 0:00:32]} 38. Ne6 {[%clk 0:01:46]}  Ra8 {[%clk 0:00:20]} 39. Rxa8 {[%clk 0:01:33]}  Rxa8 {[%clk 0:00:21]} 40. f3 {[%clk 0:01:34]}  Ne8 {[%clk 0:00:18]} 41. Rb1 {[%clk 0:01:33]}  Nd6 {[%clk 0:00:13]} 42. Rb6 {[%clk 0:01:33]}  Nc4 {[%clk 0:00:14]} 43. Rb7 {[%clk 0:01:33]}  g5 {[%clk 0:00:11]} 44. Rg7+ {[%clk 0:01:33]}  Kh8 {[%clk 0:00:11]} 45. Rc7 {[%clk 0:01:30]}  Ra1+ {[%clk 0:00:11]} 46. Kf2 {[%clk 0:01:28]}  Ne3 {[%clk 0:00:10]} 47. d6 {[%clk 0:01:24]}  Ra2+ {[%clk 0:00:09]} 48. Ke1 {[%clk 0:01:24]}  Ra1+ {[%clk 0:00:07]} 49. Kd2 {[%clk 0:01:22]}  Rd1+ {[%clk 0:00:07]} 50. Ke2 {[%clk 0:01:22]}  Rxd6 {[%clk 0:00:07]} 51. Nf8 {[%clk 0:01:16]}  Ra6 {[%clk 0:00:06]} 52. Kd3 {[%clk 0:01:12]}  Ra3+ {[%clk 0:00:06]} 53. Kd2 {[%clk 0:01:12]}  Ra2+ {[%clk 0:00:07]} 54. Kd3 {[%clk 0:01:12]}  Ra3+ {[%clk 0:00:07]} 55. Ke2 {[%clk 0:01:11]}  Ra2+ {[%clk 0:00:07]} 56. Ke1 {[%clk 0:01:10]}  Ra1+ {[%clk 0:00:08]} 57. Kf2 {[%clk 0:01:09]}  Ra2+ {[%clk 0:00:08]} 58. Kg1 {[%clk 0:01:09]}  Ra1+ {[%clk 0:00:09]} 59. Kf2 {[%clk 0:01:06]}  Ra2+ {[%clk 0:00:09]} 60. Ke1 {[%clk 0:01:06]}  Ra1+ {[%clk 0:00:09]} 61. Ke2 {[%clk 0:01:05]}  Ra2+ {[%clk 0:00:10]} 62. Kd3 {[%clk 0:01:05]}  Ra3+ {[%clk 0:00:10]} 1/2-1/2


[Site "https://www.chess.com"]

[Event "Titled Tuesday Blitz February 14 Late 2023"]
[White "Ezat, Mohamed"]
[Black "Toktomushev, Teimur"]
[WhiteFideId "10600906"]
[BlackFideId "14176726"]
[WhiteElo "2402"]
[BlackElo "2239"]
[Result "1-0"]
[Round "02"]
[TimeControl "180+2"]
[Date "2023.02.14"]
[WhiteClock "0:01:42"]
[BlackClock "0:00:07"]

1. e4 {[%clk 0:02:59]}  c5 {[%clk 0:03:00]} 2. d4 {[%clk 0:02:59]}  cxd4 {[%clk 0:03:00]} 3. c3 {[%clk 0:03:00]}  dxc3 {[%clk 0:03:00]} 4. Nxc3 {[%clk 0:03:00]}  e6 {[%clk 0:03:01]} 5. Nf3 {[%clk 0:03:00]}  Nc6 {[%clk 0:03:02]} 6. Bc4 {[%clk 0:03:01]}  Bb4 {[%clk 0:03:02]} 7. O-O {[%clk 0:03:00]}  Nge7 {[%clk 0:03:03]} 8. Qe2 {[%clk 0:03:00]}  O-O {[%clk 0:03:03]} 9. Rd1 {[%clk 0:02:59]}  Bxc3 {[%clk 0:03:04]} 10. bxc3 {[%clk 0:02:59]}  d5 {[%clk 0:03:04]} 11. Bg5 {[%clk 0:02:57]}  Qc7 {[%clk 0:02:54]} 12. Bb3 {[%clk 0:02:54]}  b6 {[%clk 0:02:14]} 13. Rac1 {[%clk 0:02:43]}  Bb7 {[%clk 0:02:11]} 14. exd5 {[%clk 0:02:30]}  Nxd5 {[%clk 0:01:57]} 15. Bxd5 {[%clk 0:02:27]}  exd5 {[%clk 0:01:58]} 16. Rxd5 {[%clk 0:02:26]}  f6 {[%clk 0:01:49]} 17. Qe6+ {[%clk 0:02:06]}  Kh8 {[%clk 0:00:52]} 18. Rd7 {[%clk 0:02:05]}  Qc8 {[%clk 0:00:47]} 19. Rcd1 {[%clk 0:01:45]}  fxg5 {[%clk 0:00:11]} 20. Nxg5 {[%clk 0:01:44]}  Qe8 {[%clk 0:00:08]} 21. Qxe8 {[%clk 0:01:43]}  Rfxe8 {[%clk 0:00:05]} 22. Rxb7 {[%clk 0:01:43]}  Rad8 {[%clk 0:00:06]} 23. Nf7+ {[%clk 0:01:42]}  Kg8 {[%clk 0:00:06]} 24. Nxd8 {[%clk 0:01:42]}  Nxd8 {[%clk 0:00:07]} 25. Rb8 {[%clk 0:01:42]} 1-0


[Site "https://www.chess.com"]